fUSD/lending_fUSD_20250716
["ID","MTS","AMOUNT","RATE_DAILY","PERIOD"]
[372493735,1752663058547,-197.026223,0.00021917,2]
[372493736,1752663058556,-13788.05,0.00021917,2]
[372493737,1752663058565,-460.0,0.00021917,2]
[372493738,1752663058574,-151.0,0.00021917,2]
[372493739,1752663058583,-197.026223,0.00021917,2]
[372493740,1752663058593,-1267.17,0.00021917,2]
[372493741,1752663058602,-151.0,0.00021917,2]
[372493742,1752663058611,-197.026223,0.00021917,2]
[372493743,1752663058620,-460.0,0.00021917,2]
[372493744,1752663058629,-151.0,0.00021917,2]
[372493745,1752663058638,-460.0,0.00021917,2]
[372493746,1752663058648,-1974.88,0.00021917,2]
[372493747,1752663058657,-460.0,0.00021917,2]
[372493748,1752663058666,-7127.48,0.00021917,2]
[372493749,1752663058676,-464.21,0.00021917,2]
[372493750,1752663058686,-5381.58,0.00021917,2]
[372493751,1752663058695,-2017.87,0.00021917,2]
[372493752,1752663058704,-1882.82,0.00021917,2]
[372493753,1752663058714,-197.026223,0.00021917,2]
[372493754,1752663058723,-197.026223,0.00021917,2]
[372493755,1752663058733,-197.026223,0.00021917,2]
[372493756,1752663058743,-1745.67,0.00021917,2]
[372493757,1752663058753,-197.026223,0.00021917,2]
[372493758,1752663058762,-460.0,0.00021917,2]
[372493759,1752663058772,-460.0,0.00021917,2]
[372493760,1752663058781,-197.026223,0.00021917,2]
[372493761,1752663058791,-6507.01,0.00021917,2]
[372493762,1752663058801,-197.026223,0.00021917,2]
[372493763,1752663058815,-2383.17,0.00021917,2]
[372493764,1752663058825,-500.0,0.00021917,2]
[372493765,1752663058835,-460.0,0.00021917,2]
[372493766,1752663058844,-500.0,0.00021917,2]
[372493767,1752663058854,-463.01584958,0.00021917,2]
[372493768,1752663058989,-460.0,0.00021917,2]
[372493769,1752663059012,-7346.25,0.00021917,2]
[372493770,1752663059022,-460.0,0.00021917,2]
[372493771,1752663059032,-460.0,0.00021917,2]
[372493772,1752663059042,-16919.72,0.00021917,2]
[372493773,1752663059052,-460.0,0.00021917,2]
[372493774,1752663059062,-461.77696716,0.00021917,2]
[372493775,1752663059071,-460.0,0.00021917,2]
[372493776,1752663059081,-460.0,0.00021917,2]
[372493777,1752663059090,-460.0,0.00021917,2]
[372493778,1752663059100,-1542.47,0.00021917,2]
[372493779,1752663059109,-3978.63,0.00021917,2]
[372493780,1752663059118,-460.0,0.00021917,2]
[372493781,1752663059128,-480.26,0.00021917,2]
[372493782,1752663059137,-460.0,0.00021917,2]
[372493783,1752663059146,-925.97,0.00021917,2]
[372493784,1752663059155,-10810.3,0.00021917,2]
[372493785,1752663059165,-612.19,0.00021917,2]
[372493786,1752663059178,-1020.48,0.00021917,2]
[372493787,1752663059188,-1531.25,0.00021917,2]
[372493788,1752663059198,-4266.26,0.00021917,2]
[372493789,1752663059207,-2510.73,0.00021917,2]
[372493790,1752663059218,-1572.04,0.00021917,2]
[372493791,1752663059228,-462.81431932,0.00021917,2]
[372493792,1752663059237,-2857.59,0.00021917,2]
[372493793,1752663059248,-460.0,0.00021917,2]
[372493794,1752663059258,-460.0,0.00021917,2]
[372493795,1752663059268,-460.0,0.00021917,2]
[372493796,1752663059279,-1995.47,0.00021917,2]
[372493797,1752663059288,-1157.09,0.00021917,2]
[372493798,1752663059298,-151.0,0.00021917,2]
[372493799,1752663059308,-930.83,0.00021917,2]
[372493800,1752663059318,-460.0,0.00021917,2]
[372493801,1752663059328,-460.0,0.00021917,2]
[372493802,1752663059338,-151.0,0.00021917,2]
[372493803,1752663059347,-5000.0,0.00021918,2]
[372493804,1752663059358,-150.0,0.00021918,2]
[372493805,1752663059367,-150.0,0.00021923,2]
[372493806,1752663059377,-427.40758553,0.00021927,2]
[372493807,1752663059387,-5391.81600769,0.00021927,2]
[372493808,1752663059396,-838.7287696,0.00021929,2]
[372493809,1752663059405,-160.0,0.00021929,2]
[372493810,1752663059415,-476.61752775,0.00021929,2]
[372493811,1752663059424,-210.72748344,0.00021929,2]
[372493812,1752663059434,-150.0,0.0002194,2]
[372493813,1752663059443,-150.0,0.00021951,2]
[372493814,1752663059453,-169.45697181,0.00021954,4]
[372493815,1752663059462,-169.45697181,0.00021954,4]
[372493816,1752663059472,-169.45697181,0.00021954,4]
[372493817,1752663059481,-169.45697181,0.00021954,4]
[372493818,1752663059491,-172.80246109,0.00021954,4]
[372493819,1752663059500,-172.80246109,0.00021954,4]
[372493820,1752663059510,-172.80246109,0.00021954,4]
[372493821,1752663059520,-172.80246109,0.00021954,4]
[372493822,1752663059529,-154.28037478,0.00021954,4]
[372493823,1752663059539,-154.28037478,0.00021954,4]
[372493824,1752663059549,-154.28037478,0.00021954,4]
[372493825,1752663059559,-154.28037478,0.00021954,4]
[372493826,1752663059569,-154.28037478,0.00021954,4]
[372493827,1752663059579,-226.65347383,0.00021954,2]
[372493828,1752663059589,-151.0,0.00021954,7]
[372493829,1752663059599,-151.0,0.00021954,7]
[372493830,1752663059609,-151.0,0.00021954,7]
[372493831,1752663059619,-449.46842246,0.00021954,2]
[372493832,1752663059629,-2648.00514246,0.00021954,2]
[372493833,1752663059638,-160.90014058,0.00021954,2]
[372493834,1752663059648,-212.5940225,0.00021954,2]
[372493835,1752663059658,-1209.0,0.00021968,2]
[372493836,1752663059667,-1209.0,0.00021968,2]
[372493837,1752663059677,-215.24525224,0.00021968,2]
[372493838,1752663059687,-150.0,0.00021969,2]
[372493839,1752663059698,-500.0,0.00021973,2]
[372493840,1752663059708,-500.0,0.00021973,2]
[372493841,1752663059718,-525.32884282,0.00021973,2]
[372493842,1752663059727,-500.0,0.00021973,2]
[372493843,1752663059737,-504.57677426,0.00021973,2]
[372493844,1752663059746,-500.0,0.00021973,2]
[372493845,1752663059755,-500.0,0.00021973,2]
[372493846,1752663059765,-500.0,0.00021973,2]
[372493847,1752663059774,-507.02782643,0.00021973,2]
[372493848,1752663059784,-500.0,0.00021973,2]
[372493849,1752663059793,-500.0,0.00021973,2]
[372493850,1752663059803,-500.0,0.00021973,2]
[372493851,1752663059812,-500.0,0.00021973,2]
[372493852,1752663059822,-431.45826965,0.00021973,2]
[372493853,1752663059831,-500.0,0.00021973,2]
[372493854,1752663059841,-430.27562895,0.00021973,2]
[372493855,1752663059851,-150.0,0.00021981,2]
[372493856,1752663059861,-151.0,0.00021982,7]
[372493857,1752663059871,-197.026223,0.00021982,7]
[372493858,1752663059880,-197.026223,0.00021982,7]
[372493859,1752663059889,-5591.31319997,0.00021982,2]
[372493860,1752663059899,-150.0,0.00021987,2]
[372493861,1752663059909,-176.166,0.00021999,2]
[372493862,1752663059918,-1686.72,0.00021999,2]
[372493863,1752663059928,-1000.0,0.00022,30]
[372493864,1752663059938,-20050.0,0.00022,2]
[372493865,1752663059947,-15735.37273955,0.00022,2]
[372493866,1752663059957,-423.7273368,0.00022,30]
[372493867,1752663059967,-5002.66819993,0.00022,2]
[372493868,1752663059976,-805.0,0.00022,2]
[372493869,1752663059987,-2500.48020032,0.00022,2]
[372493870,1752663059996,-391.0,0.00022,2]
[372493871,1752663060006,-239.0,0.00022,2]
[372493872,1752663060016,-378.0,0.00022,2]
[372493873,1752663060026,-3967.0,0.0002201,2]
[372493874,1752663060042,-865.0,0.0002201,2]
[372493875,1752663060052,-757.766,0.0002201,2]
[372493876,1752663060061,-500.0,0.00022022,2]
[372493877,1752663060071,-500.0,0.00022022,2]
[372493878,1752663060081,-1015.21,0.00022022,2]
[372493879,1752663060091,-1167.98,0.00022022,2]
[372493880,1752663060103,-427.40758553,0.00022036,2]
[372493881,1752663060113,-5798.19178837,0.00022037,2]
[372493882,1752663060123,-252502.2719951,0.00022039,2]
[372493883,1752663060132,-261060.9978989,0.00022039,2]
[372493884,1752663060143,-269619.7238027,0.00022039,2]
[372493885,1752663060152,-308.0,0.00022041,2]
[372493886,1752663060163,-1746.9049025,0.00022043,2]
[372493887,1752663060176,-11204.4020021,0.00022043,2]
[372493888,1752663060186,-2087.3853704,0.00022043,2]
[372493889,1752663060196,-8423.9664003,0.00022043,2]
[372493890,1752663060206,-2087.569073,0.00022043,2]
[372493891,1752663060217,-590.92667884,0.00022043,2]
[372493892,1752663060227,-151.0,0.00022045,7]
[372493893,1752663060236,-151.0,0.00022045,7]
[372493894,1752663060248,-192.472968,0.00022045,7]
[372493895,1752663060259,-151.0,0.00022045,7]
[372493896,1752663060269,-502.673306,0.00022045,7]
[372493897,1752663060278,-502.673306,0.00022045,7]
[372493898,1752663060287,-1258.33853,0.00022045,7]
[372493899,1752663060297,-1258.33853,0.00022045,7]
[372493900,1752663060306,-1146.891721,0.00022045,7]
[372493901,1752663060316,-1146.891721,0.00022045,7]
[372493902,1752663060326,-151.0,0.00022045,7]
[372493903,1752663060336,-151.0,0.00022045,7]
[372493904,1752663060345,-151.0,0.00022048,7]
[372493905,1752663060356,-356.939378,0.00022048,7]
[372493906,1752663060365,-356.939378,0.00022048,7]
[372493907,1752663060375,-580.169506,0.00022048,7]
[372493908,1752663060385,-580.169506,0.00022048,7]
[372493909,1752663060396,-371.136054,0.00022048,7]
[372493910,1752663060406,-371.136054,0.00022048,7]
[372493911,1752663060416,-151.0,0.00022048,7]
[372493912,1752663060425,-151.0,0.00022048,7]
[372493913,1752663060435,-221.243205,0.00022048,7]
[372493914,1752663060445,-226.43554,0.00022048,7]
[372493915,1752663060454,-226.43554,0.00022048,7]
[372493916,1752663060464,-396.528504,0.00022048,7]
[372493917,1752663060474,-396.528504,0.00022048,7]
[372493918,1752663060483,-151.0,0.0002205,7]
[372493919,1752663060493,-151.0,0.0002205,7]
[372493920,1752663060502,-1812.820071,0.0002205,2]
[372493921,1752663060512,-11627.1726095,0.0002205,2]
[372493922,1752663060522,-476.61752775,0.0002205,7]
[372493923,1752663060531,-2166.1477337,0.0002205,2]
[372493924,1752663060541,-8741.824095,0.0002205,2]
[372493925,1752663060550,-838.7287696,0.0002205,7]
[372493926,1752663060560,-2166.3383678,0.0002205,2]
[372493927,1752663060569,-500.0,0.00022052,2]
[372493928,1752663060579,-500.0,0.00022052,2]
[372493929,1752663060588,-500.0,0.00022053,2]
[372493930,1752663060598,-500.0,0.00022053,2]
[372493931,1752663060608,-500.0,0.00022053,2]
[372493932,1752663060618,-500.0,0.00022053,2]
[372493933,1752663060627,-500.0,0.00022053,2]
[372493934,1752663060637,-500.0,0.00022053,2]
[372493935,1752663060647,-500.0,0.00022053,2]
[372493936,1752663060656,-500.0,0.00022053,2]
[372493937,1752663060666,-500.0,0.00022053,2]
[372493938,1752663060676,-500.0,0.00022053,2]
[372493939,1752663060685,-500.0,0.00022053,2]
[372493940,1752663060695,-500.0,0.00022053,2]
[372493941,1752663060704,-150.0,0.00022053,2]
[372493942,1752663060714,-2000.0,0.00022053,2]
[372493943,1752663060724,-2000.0,0.00022053,2]
[372493944,1752663060733,-2000.0,0.00022053,2]
[372493945,1752663060743,-2000.0,0.00022053,2]
[372493946,1752663060752,-2000.0,0.00022053,2]
[372493947,1752663060762,-1395.61936891,0.00022053,2]
[372493948,1752663060771,-500.0,0.00022053,2]
[372493949,1752663060781,-500.0,0.00022053,2]
[372493950,1752663060791,-500.0,0.00022053,2]
[372493951,1752663060800,-500.0,0.00022053,2]
[372493952,1752663060810,-500.0,0.00022053,2]
[372493953,1752663060820,-307.85900886,0.00022053,2]
[372493954,1752663060829,-1015.21,0.00022053,2]
[372493955,1752663060839,-1015.21,0.00022053,2]
[372493956,1752663060850,-1015.21,0.00022053,2]
[372493957,1752663060859,-1015.21,0.00022053,2]
[372493958,1752663060869,-1015.21,0.00022053,2]
[372493959,1752663060879,-1015.21,0.00022053,2]
[372493960,1752663060888,-1015.21,0.00022053,2]
[372493961,1752663060898,-1015.21,0.00022053,2]
[372493962,1752663060908,-1167.98,0.00022053,2]
[372493963,1752663060918,-1167.98,0.00022053,2]
[372493964,1752663060927,-1167.98,0.00022053,2]
[372493965,1752663060937,-1167.98,0.00022053,2]
[372493966,1752663060947,-1167.98,0.00022053,2]
[372493967,1752663060956,-1167.98,0.00022053,2]
[372493968,1752663060966,-1167.98,0.00022053,2]
[372493969,1752663060976,-1167.98,0.00022053,2]
[372493970,1752663060986,-150.0,0.00022053,2]
[372493971,1752663060995,-174.84070238,0.00022053,2]
[372493972,1752663061005,-800.0,0.00022054,2]
[372493973,1752663061016,-151.0,0.00022054,7]
[372493974,1752663061026,-151.0,0.00022054,7]
[372493975,1752663061036,-151.0,0.00022054,7]
[372493976,1752663061046,-151.0,0.00022054,7]
[372493977,1752663061056,-153.128245,0.00022054,7]
[372493978,1752663061065,-294.191834,0.00022054,7]
[372493979,1752663061075,-151.0,0.00022054,7]
[372493980,1752663061084,-151.0,0.00022054,7]
[372493981,1752663061093,-151.0,0.00022054,7]
[372493982,1752663061103,-293.187796,0.00022054,7]
[372493983,1752663061112,-153.368387,0.00022054,7]
[372493984,1752663061122,-156.044223,0.00022054,7]
[372493985,1752663061131,-151.0,0.00022054,7]
[372493986,1752663061500,-151.0,0.00022054,7]
[372493987,1752663061511,-161.618399,0.00022054,7]
[372493988,1752663061520,-151.0,0.00022054,7]
[372493989,1752663061530,-286.575902,0.00022054,7]
[372493990,1752663061540,-460.0,0.00022054,2]
[372493991,1752663061550,-460.0,0.00022054,2]
[372493992,1752663061560,-519.13,0.00022054,2]
[372493993,1752663061569,-151.0,0.00022054,7]
[372493994,1752663061579,-151.0,0.00022054,7]
[372493995,1752663061588,-460.0,0.00022054,2]
[372493996,1752663061598,-676.6,0.00022054,2]
[372493997,1752663061608,-460.0,0.00022054,2]
[372493998,1752663061618,-460.0,0.00022054,2]
[372493999,1752663061626,-460.0,0.00022054,2]
[372494000,1752663061636,-460.0,0.00022054,2]
[372494001,1752663061646,-460.0,0.00022054,2]
[372494002,1752663061656,-239.679879,0.00022054,2]
[372494003,1752663061665,-460.0,0.00022054,2]
[372494004,1752663061674,-151.992021,0.00022054,7]
[372494005,1752663061684,-505.45,0.00022054,2]
[372494006,1752663061693,-151.0,0.00022054,7]
[372494007,1752663061703,-151.0,0.00022054,7]
[372494008,1752663061712,-765.61,0.00022054,2]
[372494009,1752663061721,-245.146463,0.00022054,7]
[372494010,1752663061731,-151.0,0.00022054,7]
[372494011,1752663061741,-153.582128,0.00022054,7]
[372494012,1752663061751,-460.0,0.00022054,2]
[372494013,1752663061761,-151.0,0.00022054,7]
[372494014,1752663061770,-522.62,0.00022054,2]
[372494015,1752663061780,-151.0,0.00022054,7]
[372494016,1752663061790,-151.0,0.00022054,7]
[372494017,1752663061800,-460.0,0.00022054,2]
[372494018,1752663061810,-151.296929,0.00022054,7]
[372494019,1752663061819,-151.0,0.00022054,7]
[372494020,1752663061829,-151.0,0.00022054,7]
[372494021,1752663061839,-151.0,0.00022054,7]
[372494022,1752663061849,-460.0,0.00022054,2]
[372494023,1752663061859,-538.58,0.00022054,2]
[372494024,1752663061869,-151.0,0.00022054,7]
[372494025,1752663061878,-151.0,0.00022054,7]
[372494026,1752663061888,-516.14,0.00022054,2]
[372494027,1752663061898,-460.0,0.00022054,2]
[372494028,1752663061908,-151.0,0.00022054,7]
[372494029,1752663061918,-151.0,0.00022054,7]
[372494030,1752663061927,-460.0,0.00022054,2]
[372494031,1752663061938,-460.0,0.00022054,2]
[372494032,1752663061948,-151.0,0.00022054,7]
[372494033,1752663061957,-151.0,0.00022054,7]
[372494034,1752663061968,-460.0,0.00022054,2]
[372494035,1752663061979,-151.0,0.00022054,7]
[372494036,1752663061990,-220.382076,0.00022054,7]
[372494037,1752663062000,-498.86863832,0.00022054,2]
[372494038,1752663062010,-924.61,0.00022054,2]
[372494039,1752663062020,-151.0,0.00022054,7]
[372494040,1752663062030,-151.0,0.00022054,7]
[372494041,1752663062039,-460.0,0.00022054,2]
[372494042,1752663062049,-493.05370651,0.00022054,2]
[372494043,1752663062059,-154.032486,0.00022054,7]
[372494044,1752663062070,-154.032486,0.00022054,7]
[372494045,1752663062080,-154.032486,0.00022054,7]
[372494046,1752663062089,-154.032486,0.00022054,7]
[372494047,1752663062099,-460.0,0.00022054,2]
[372494048,1752663062108,-609.32,0.00022054,2]
[372494049,1752663062118,-151.0,0.00022054,7]
[372494050,1752663062128,-151.0,0.00022054,7]
[372494051,1752663062138,-460.0,0.00022054,2]
[372494052,1752663062147,-469.76343338,0.00022054,2]
[372494053,1752663062158,-430.91846146,0.00022054,2]
[372494054,1752663062170,-460.0,0.00022054,2]
[372494055,1752663062180,-526.16404302,0.00022054,2]
[372494056,1752663062190,-151.0,0.00022054,7]
[372494057,1752663062199,-151.0,0.00022054,7]
[372494058,1752663062209,-460.0,0.00022054,2]
[372494059,1752663062219,-172.914129,0.00022054,7]
[372494060,1752663062229,-694.23,0.00022054,2]
[372494061,1752663062238,-192.77679141,0.00022054,2]
[372494062,1752663062248,-462.97335058,0.00022054,2]
[372494063,1752663062258,-460.0,0.00022054,2]
[372494064,1752663062267,-832.33,0.00022054,2]
[372494065,1752663062277,-460.0,0.00022054,2]
[372494066,1752663062287,-460.0,0.00022054,2]
[372494067,1752663062297,-463.7399888,0.00022054,2]
[372494068,1752663062306,-151.0,0.00022054,7]
[372494069,1752663062316,-151.0,0.00022054,7]
[372494070,1752663062326,-151.0,0.00022054,7]
[372494071,1752663062335,-151.0,0.00022054,7]
[372494072,1752663062346,-460.0,0.00022054,2]
[372494073,1752663062357,-430.03940108,0.00022054,2]
[372494074,1752663062367,-983.47,0.00022054,2]
[372494075,1752663062377,-151.0,0.00022054,7]
[372494076,1752663062387,-151.0,0.00022054,7]
[372494077,1752663062397,-151.0,0.00022054,7]
[372494078,1752663062407,-151.0,0.00022054,7]
[372494079,1752663062417,-172.86056631,0.00022054,2]
[372494080,1752663062426,-460.0,0.00022054,2]
[372494081,1752663062438,-151.0,0.00022054,7]
[372494082,1752663062448,-151.0,0.00022054,7]
[372494083,1752663062459,-151.0,0.00022054,7]
[372494084,1752663062468,-460.0,0.00022054,2]
[372494085,1752663062479,-289.662982,0.00022054,7]
[372494086,1752663062488,-151.0,0.00022054,7]
[372494087,1752663062498,-151.0,0.00022054,7]
[372494088,1752663062508,-460.0,0.00022054,2]
[372494089,1752663062517,-460.0,0.00022054,2]
[372494090,1752663062527,-460.0,0.00022054,2]
[372494091,1752663062537,-460.0,0.00022054,2]
[372494092,1752663062547,-460.0,0.00022054,2]
[372494093,1752663062557,-460.0,0.00022054,2]
[372494094,1752663062566,-460.0,0.00022054,2]
[372494095,1752663062576,-460.0,0.00022054,2]
[372494096,1752663062586,-460.0,0.00022054,2]
[372494097,1752663062596,-977.69,0.00022054,2]
[372494098,1752663062605,-460.0,0.00022054,2]
[372494099,1752663062615,-460.0,0.00022054,2]
[372494100,1752663062626,-460.0,0.00022054,2]
[372494101,1752663062637,-460.0,0.00022054,2]
[372494102,1752663062647,-151.0,0.00022054,7]
[372494103,1752663062657,-151.0,0.00022054,7]
[372494104,1752663062666,-256.080864,0.00022054,7]
[372494105,1752663062676,-597.48,0.00022054,2]
[372494106,1752663062686,-151.0,0.00022054,7]
[372494107,1752663062695,-151.0,0.00022054,7]
[372494108,1752663062705,-151.0,0.00022054,7]
[372494109,1752663062715,-151.0,0.00022054,7]
[372494110,1752663062725,-151.0,0.00022054,7]
[372494111,1752663062735,-151.0,0.00022054,7]
[372494112,1752663062744,-151.0,0.00022054,7]
[372494113,1752663062754,-460.0,0.00022054,2]
[372494114,1752663062763,-151.0,0.00022054,7]
[372494115,1752663062774,-460.0,0.00022054,2]
[372494116,1752663062784,-546.78748652,0.00022054,2]
[372494117,1752663062795,-460.0,0.00022054,2]
[372494118,1752663062807,-256.34481136,0.00022054,2]
[372494119,1752663062817,-935.9,0.00022054,2]
[372494120,1752663062829,-460.0,0.00022054,2]
[372494121,1752663062839,-459.5833867,0.00022054,2]
[372494122,1752663062849,-151.0,0.00022054,7]
[372494123,1752663062859,-151.0,0.00022054,7]
[372494124,1752663062868,-151.0,0.00022054,7]
[372494125,1752663062879,-235.689855,0.00022054,7]
[372494126,1752663062889,-891.24,0.00022054,2]
[372494127,1752663062899,-460.0,0.00022054,2]
[372494128,1752663062909,-644.94,0.00022054,2]
[372494129,1752663062919,-954.44,0.00022054,2]
[372494130,1752663062929,-460.0,0.00022054,2]
[372494131,1752663062938,-731.16,0.00022054,2]
[372494132,1752663062948,-460.0,0.00022054,2]
[372494133,1752663062958,-527.22879351,0.00022054,2]
[372494134,1752663062967,-833.42,0.00022054,2]
[372494135,1752663062977,-523.46,0.00022054,2]
[372494136,1752663062987,-460.0,0.00022054,2]
[372494137,1752663062997,-460.0,0.00022054,2]
[372494138,1752663063006,-500.0,0.00022054,5]
[372494139,1752663063015,-460.0,0.00022054,2]
[372494140,1752663063027,-151.0,0.00022054,2]
[372494141,1752663063036,-299.44893631,0.00022054,2]
[372494142,1752663063047,-151.0,0.00022054,7]
[372494143,1752663063058,-150.0,0.00022054,2]
[372494144,1752663063068,-460.0,0.00022054,2]
[372494145,1752663063078,-460.0,0.00022054,2]
[372494146,1752663063088,-151.0,0.00022054,7]
[372494147,1752663063097,-151.0,0.00022054,7]
[372494148,1752663063107,-151.0,0.00022054,7]
[372494149,1752663063117,-488.59,0.00022054,2]
[372494150,1752663063127,-150.0,0.00022054,2]
[372494151,1752663063137,-460.0,0.00022054,2]
[372494152,1752663063146,-462.4035856,0.00022054,2]
[372494153,1752663063157,-774.89,0.00022054,2]
[372494154,1752663063168,-518.16,0.00022054,2]
[372494155,1752663063178,-150.0,0.00022054,2]
[372494156,1752663063188,-460.0,0.00022054,2]
[372494157,1752663063198,-460.0,0.00022054,2]
[372494158,1752663063208,-150.0,0.00022054,2]
[372494159,1752663063218,-460.0,0.00022054,2]
[372494160,1752663063228,-460.0,0.00022054,2]
[372494161,1752663063238,-1277.44,0.00022054,2]
[372494162,1752663063249,-460.0,0.00022054,2]
[372494163,1752663063259,-460.0,0.00022054,2]
[372494164,1752663063269,-876.74,0.00022054,2]
[372494165,1752663063279,-460.0,0.00022054,2]
[372494166,1752663063289,-737.68,0.00022054,2]
[372494167,1752663063299,-460.0,0.00022054,2]
[372494168,1752663063309,-460.0,0.00022054,2]
[372494169,1752663063319,-460.0,0.00022054,2]
[372494170,1752663063328,-460.0,0.00022054,2]
[372494171,1752663063339,-566.92,0.00022054,2]
[372494172,1752663063349,-819.52,0.00022054,2]
[372494173,1752663063358,-460.0,0.00022054,2]
[372494174,1752663063369,-529.96,0.00022054,2]
[372494175,1752663063379,-460.0,0.00022054,2]
[372494176,1752663063389,-460.0,0.00022054,2]
[372494177,1752663063399,-460.0,0.00022054,2]
[372494178,1752663063408,-462.33065369,0.00022054,2]
[372494179,1752663063418,-460.0,0.00022054,2]
[372494180,1752663063427,-509.23,0.00022054,2]
[372494181,1752663063437,-460.0,0.00022054,2]
[372494182,1752663063448,-460.0,0.00022054,2]
[372494183,1752663063457,-460.0,0.00022054,2]
[372494184,1752663063467,-1012.49,0.00022054,2]
[372494185,1752663063477,-732.88,0.00022054,2]
[372494186,1752663063487,-992.29,0.00022054,2]
[372494187,1752663063496,-518.81,0.00022054,2]
[372494188,1752663063506,-460.0,0.00022054,2]
[372494189,1752663063516,-460.0,0.00022054,2]
[372494190,1752663063526,-1830.19,0.00022054,2]
[372494191,1752663063536,-460.76459641,0.00022054,2]
[372494192,1752663063545,-1118.14,0.00022054,2]
[372494193,1752663063555,-460.0,0.00022054,2]
[372494194,1752663063565,-698.13,0.00022054,2]
[372494195,1752663063574,-460.0,0.00022054,2]
[372494196,1752663063584,-536.27,0.00022054,2]
[372494197,1752663063594,-460.0,0.00022054,2]
[372494198,1752663063604,-460.0,0.00022054,2]
[372494199,1752663063614,-460.0,0.00022054,2]
[372494200,1752663063624,-1149.74,0.00022054,2]
[372494201,1752663063634,-460.0,0.00022054,2]
[372494202,1752663063643,-460.0,0.00022054,2]
[372494203,1752663063652,-1545.31,0.00022054,2]
[372494204,1752663063663,-460.0,0.00022054,2]
[372494205,1752663063673,-460.0,0.00022054,2]
[372494206,1752663063683,-460.0,0.00022054,2]
[372494207,1752663063693,-460.0,0.00022054,2]
[372494208,1752663063702,-460.0,0.00022054,2]
[372494209,1752663063712,-726.17,0.00022054,2]
[372494210,1752663063722,-1284.09,0.00022054,2]
[372494211,1752663063732,-460.0,0.00022054,2]
[372494212,1752663063742,-1215.86,0.00022054,2]
[372494213,1752663063752,-460.0,0.00022054,2]
[372494214,1752663063762,-501.15,0.00022054,2]
[372494215,1752663063772,-761.3,0.00022054,2]
[372494216,1752663063782,-460.0,0.00022054,2]
[372494217,1752663063791,-460.0,0.00022054,2]
[372494218,1752663063801,-639.95,0.00022054,2]
[372494219,1752663063811,-460.0,0.00022054,2]
[372494220,1752663063820,-420.92990271,0.00022054,2]
[372494221,1752663063830,-645.67,0.00022054,2]
[372494222,1752663063840,-1102.51,0.00022054,2]
[372494223,1752663063851,-460.0,0.00022054,2]
[372494224,1752663063861,-482.63,0.00022054,2]
[372494225,1752663063870,-555.69,0.00022054,2]
[372494226,1752663063880,-460.0,0.00022054,2]
[372494227,1752663063890,-486.85,0.00022054,2]
[372494228,1752663063899,-460.0,0.00022054,2]
[372494229,1752663064052,-460.0,0.00022054,2]
[372494230,1752663064062,-460.0,0.00022054,2]
[372494231,1752663064072,-460.0,0.00022054,2]
[372494232,1752663064082,-782.15,0.00022054,2]
[372494233,1752663064092,-772.4,0.00022054,2]
[372494234,1752663064102,-1307.09,0.00022054,2]